bitfinex/quotes_BTCUSD_20251024
["timestamp","ask_amount","ask_price","bid_price","bid_amount"]
[1761265332808,0.18102824,110480.0,110470.0,0.002]
[1761265333012,0.18104462,110470.0,110460.0,0.18106101]
[1761265333195,0.18104462,110470.0,110460.0,0.43096002]
[1761265333601,0.18104462,110470.0,110460.0,0.24989901]
[1761265333817,0.18104462,110470.0,110460.0,0.43096002]
[1761265335055,0.18104462,110470.0,110460.0,0.27088002]
[1761265335429,0.18104462,110470.0,110460.0,0.43096002]
[1761265336006,0.18104462,110470.0,110460.0,0.43396002]
[1761265339091,0.18104462,110470.0,110460.0,0.25289901]
[1761265339331,0.52104462,110470.0,110460.0,0.25285901]
[1761265342190,0.52104462,110470.0,110460.0,0.003]
[1761265342418,0.52104462,110470.0,110460.0,0.16304]
[1761265342866,0.52104462,110470.0,110460.0,0.16104]
[1761265343080,0.52104462,110470.0,110460.0,0.16204]
[1761265343289,0.52104462,110470.0,110460.0,0.16104]
[1761265343507,0.52104462,110470.0,110460.0,0.16004]
[1761265344365,0.18106101,110460.0,110450.0,0.05810654]
[1761265344579,0.18106101,110460.0,110450.0,0.30796555]
[1761265344800,0.18106101,110460.0,110450.0,0.43108296]
[1761265345973,0.18106101,110460.0,110450.0,0.43308296]
[1761265346830,0.18106101,110460.0,110450.0,0.43408296]
[1761265347635,0.18106101,110460.0,110450.0,0.25300555]
[1761265349288,0.18106101,110460.0,110450.0,0.09296555]
[1761265349515,0.18106101,110460.0,110450.0,0.25304555]
[1761265349738,0.18106101,110460.0,110450.0,0.43412296]
[1761265350184,0.18106101,110460.0,110450.0,0.25304555]
[1761265354090,0.52106101,110460.0,110450.0,0.00314654]
[1761265354606,0.54826137,110460.0,110450.0,0.00314654]
[1761265355406,0.54826137,110460.0,110450.0,0.00214654]
[1761265355591,0.54826137,110460.0,110450.0,0.00014654]
[1761265355800,0.54826137,110460.0,110450.0,0.00114654]
[1761265356221,0.59203115,110460.0,110450.0,0.00114654]
[1761265356640,0.77692994,110460.0,110450.0,0.00114654]
[1761265357093,0.52107741,110450.0,110440.0,0.004]
[1761265357280,0.80351367,110450.0,110440.0,0.004]
[1761265357487,0.77112272,110450.0,110440.0,0.004]
[1761265357692,0.86094173,110450.0,110440.0,0.004]
[1761265358827,0.89333268,110450.0,110440.0,0.004]
[1761265360393,0.66757038,110450.0,110440.0,0.004]
[1761265360607,0.84864779,110450.0,110440.0,0.004]
[1761265361446,0.1810938,110440.0,110430.0,0.00209215]
[1761265361656,0.32887281,110440.0,110430.0,0.00209215]
[1761265361910,0.1810938,110440.0,110430.0,0.00209215]
[1761265362119,0.1810938,110440.0,110430.0,0.09191116]
[1761265362763,0.5210938,110440.0,110430.0,0.09191116]
[1761265364080,0.5220938,110440.0,110430.0,0.09191116]
[1761265365281,0.5220938,110440.0,110430.0,0.00209215]
[1761265367756,0.5220938,110440.0,110430.0,0.00236815]
[1761265374950,0.341,110440.0,110430.0,0.00236815]
[1761265375164,0.5220938,110440.0,110430.0,0.27329736]
[1761265377243,0.5220938,110440.0,110430.0,0.09218716]
[1761265378284,0.5220938,110440.0,110430.0,0.27329736]
[1761265379904,0.5220938,110440.0,110430.0,0.09218716]
[1761265380556,0.5220938,110440.0,110430.0,0.00236815]
[1761265381014,0.5492986,110440.0,110430.0,0.00236815]
[1761265381688,0.5492986,110440.0,110430.0,0.27329736]
[1761265381904,0.5492986,110440.0,110430.0,0.09218716]
[1761265382114,0.5492986,110440.0,110430.0,0.27329736]
[1761265382333,0.5220938,110440.0,110430.0,0.27329736]
[1761265382552,0.5220938,110440.0,110430.0,0.09218716]
[1761265382779,0.52114301,110410.0,110400.0,0.004]
[1761265384119,0.52114301,110410.0,110400.0,0.0074884]
[1761265384742,0.52114301,110410.0,110400.0,0.09730741]
[1761265385843,0.52114301,110410.0,110400.0,0.27846683]
[1761265387583,0.44030683,110440.0,110400.0,0.27846683]
[1761265387584,0.19962401,110440.0,110410.0,0.1811203]
[1761265387809,0.18148403,110440.0,110420.0,0.18112495]
[1761265388016,0.1811102,110430.0,110420.0,0.18112495]
[1761265389069,0.1811102,110430.0,110420.0,0.3416866]
[1761265389480,0.1811102,110430.0,110420.0,0.16056]
[1761265389934,0.1811102,110430.0,110420.0,0.3416866]
[1761265390618,0.1811102,110430.0,110420.0,0.16056]
[1761265392458,0.1811102,110430.0,110420.0,0.3416866]
[1761265393348,0.1811102,110430.0,110420.0,0.3426866]
[1761265395697,0.1811102,110430.0,110420.0,0.16152]
[1761265396120,0.3415902,110430.0,110420.0,0.001]
[1761265396334,0.3415902,110430.0,110420.0,0.005]
[1761265397865,1.01836921,110430.0,110420.0,0.005]
[1761265398081,1.11345015,110430.0,110420.0,0.005]
[1761265398290,1.14066112,110430.0,110420.0,0.005]
[1761265398548,1.23048013,110430.0,110420.0,0.005]
[1761265399179,1.23048013,110430.0,110420.0,0.004]
[1761265399594,1.23148013,110430.0,110420.0,0.004]
[1761265400020,1.20426916,110430.0,110420.0,0.004]
[1761265402249,1.20426916,110430.0,110400.0,0.0044884]
[1761265402250,0.52114301,110410.0,110400.0,0.0044884]
[1761265402449,0.86130103,110410.0,110400.0,0.0044884]
[1761265402731,0.94187641,110410.0,110400.0,0.0044884]
[1761265403554,1.00961489,110410.0,110400.0,0.0044884]
[1761265404615,1.04579717,110410.0,110400.0,0.0044884]
[1761265405258,0.99872748,110410.0,110400.0,0.0044884]
[1761265410421,0.247,110400.0,110390.0,0.00171242]
[1761265410627,0.247,110400.0,110360.0,0.0044]
[1761265410628,0.52120866,110370.0,110360.0,0.0044]
[1761265411022,0.52120866,110370.0,110360.0,0.00542806]
[1761265411642,0.53052596,110370.0,110360.0,0.00542806]
[1761265412624,0.67834497,110370.0,110360.0,1e-08]
[1761265412827,0.71452725,110370.0,110360.0,1e-08]
[1761265413040,0.80396925,110370.0,110360.0,1e-08]
[1761265414309,0.83647494,110370.0,110360.0,1e-08]
[1761265414515,0.83747494,110370.0,110360.0,1e-08]
[1761265415385,0.80496925,110370.0,110360.0,1e-08]
[1761265419889,0.84014497,110370.0,110360.0,1e-08]
[1761265431100,0.87632725,110370.0,110360.0,1e-08]
[1761265431297,0.52122508,110360.0,110350.0,0.0004]
[1761265432510,0.52127381,110360.0,110350.0,0.0004]
[1761265435936,0.76827381,110360.0,110350.0,0.0004]
[1761265436395,0.8007795,110360.0,110350.0,0.0004]
[1761265437126,0.8007795,110360.0,110350.0,0.00074277]
[1761265437600,0.76827381,110360.0,110350.0,0.00074277]
[1761265439393,0.8007795,110360.0,110350.0,0.00074277]
[1761265441906,0.5537795,110360.0,110350.0,0.00074277]
[1761265442133,0.18127381,110360.0,110350.0,0.00074277]
[1761265442370,0.18127381,110360.0,110350.0,0.18198427]
[1761265442607,0.18127381,110360.0,110350.0,0.27180328]
[1761265442608,4.873e-05,110360.0,110350.0,0.27180328]
[1761265442843,4.873e-05,110360.0,110350.0,0.32980328]
[1761265443748,4.873e-05,110360.0,110350.0,0.33080328]
[1761265443975,4.873e-05,110360.0,110350.0,0.32980328]
[1761265444513,4.873e-05,110360.0,110350.0,0.36898556]
[1761265445042,4.873e-05,110360.0,110350.0,0.52958556]
[1761265446091,4.873e-05,110360.0,110350.0,0.53058556]
[1761265452582,0.18119711,110380.0,110360.0,0.18121037]
[1761265452796,0.18119711,110380.0,110370.0,0.25029901]
[1761265463380,0.18403001,110380.0,110370.0,0.25029901]
[1761265465337,0.18403001,110380.0,110370.0,0.43150767]
[1761265465543,0.18403001,110380.0,110370.0,0.25029901]
[1761265466350,0.18403001,110380.0,110370.0,0.43150767]
[1761265466999,0.18403001,110380.0,110370.0,0.25029901]
[1761265467178,0.18403001,110380.0,110370.0,0.43150767]
[1761265467479,0.18403001,110380.0,110370.0,0.25029901]
[1761265467680,0.18403001,110380.0,110370.0,0.43150767]
[1761265472091,0.0028329,110380.0,110370.0,0.48950767]
[1761265473155,0.0028329,110380.0,110370.0,0.52568995]
[1761265473401,0.18117587,110390.0,110380.0,0.18119224]
[1761265473618,0.18400827,110390.0,110380.0,0.27101125]
[1761265474774,0.18400827,110390.0,110380.0,0.08981901]
[1761265475001,0.18400827,110390.0,110380.0,0.43129125]
[1761265475459,0.18400827,110390.0,110380.0,0.43429125]
[1761265476235,0.18400827,110390.0,110380.0,0.43529125]
[1761265480267,0.18400827,110390.0,110380.0,0.25409901]
[1761265480487,0.18400827,110390.0,110380.0,0.43529125]
[1761265480713,0.18400827,110390.0,110380.0,0.25405901]
[1761265480930,0.52400827,110390.0,110380.0,0.25405901]
[1761265482017,0.52400827,110390.0,110380.0,0.24950312]
[1761265483629,0.18400827,110390.0,110380.0,0.43069536]
[1761265486270,0.18400823,110390.0,110380.0,0.43069536]
[1761265487122,0.18400823,110390.0,110380.0,0.43469536]
[1761265488766,0.0028324,110390.0,110380.0,0.43469536]
[1761265488980,0.0028324,110390.0,110380.0,0.47087764]
[1761265489383,0.004,110400.0,110390.0,0.18117583]
[1761265489593,0.00683213,110400.0,110390.0,0.34711242]
[1761265489792,0.00683213,110400.0,110390.0,0.32899484]
[1761265491043,0.00683213,110400.0,110390.0,0.32999484]
[1761265491875,0.00683213,110400.0,110390.0,0.32899484]
[1761265492079,0.00683213,110400.0,110390.0,0.33299484]
[1761265492487,0.004,110400.0,110390.0,0.33399484]
[1761265498987,0.004,110400.0,110390.0,0.43623484]
[1761265499203,0.18515942,110400.0,110390.0,0.34641583]
[1761265499832,0.18799152,110400.0,110390.0,0.34641583]
[1761265500486,0.0068321,110400.0,110390.0,0.43523484]
[1761265500843,0.0068321,110400.0,110390.0,0.43223484]
[1761265501014,0.0068321,110400.0,110390.0,0.43523484]
[1761265501214,0.0068321,110400.0,110390.0,0.43423484]
[1761265501440,0.18515942,110400.0,110390.0,0.43423484]
[1761265501646,0.18799153,110400.0,110390.0,0.43523484]
[1761265501845,0.18799153,110400.0,110390.0,0.43519484]
[1761265503534,0.00683211,110400.0,110390.0,0.43519484]
[1761265503748,0.004,110400.0,110390.0,0.43519484]
[1761265504980,0.18515942,110400.0,110390.0,0.43519484]
[1761265505959,0.004,110400.0,110390.0,0.43519484]
[1761265506640,0.18515942,110400.0,110390.0,0.43519484]
[1761265507682,0.004,110400.0,110390.0,0.43519484]
[1761265508775,0.18515942,110400.0,110390.0,0.43519484]
[1761265511159,0.00683214,110400.0,110390.0,0.43519484]
[1761265513365,0.004,110400.0,110390.0,0.43519484]
[1761265514718,0.004,110400.0,110390.0,0.47137712]
[1761265525381,0.004,110400.0,110390.0,0.31117712]
[1761265525599,0.004,110400.0,110390.0,0.52937712]
[1761265526322,0.004,110400.0,110390.0,0.47137712]
[1761265526532,0.004,110400.0,110390.0,0.52937712]
[1761265527658,0.004,110400.0,110390.0,0.27499484]
[1761265527878,0.004,110400.0,110390.0,0.52937712]
[1761265531229,0.004,110400.0,110390.0,0.31117712]
[1761265531435,0.18799142,110400.0,110390.0,0.27499484]
[1761265531668,0.18799142,110400.0,110390.0,0.43519484]
[1761265535777,0.18799142,110400.0,110390.0,0.004]
[1761265535979,0.18799142,110400.0,110390.0,0.1642]
[1761265536180,0.21520327,110400.0,110390.0,0.1642]
[1761265537530,0.21520327,110400.0,110390.0,0.34537583]
[1761265537825,0.21520361,110400.0,110390.0,0.1642]
[1761265538047,0.21520361,110400.0,110390.0,0.004]
[1761265538222,0.21520361,110400.0,110390.0,0.1642]
[1761265539114,0.21520361,110400.0,110390.0,0.004]
[1761265539333,0.21520361,110400.0,110390.0,0.1642]
[1761265539753,0.21520361,110400.0,110390.0,0.004]
[1761265539970,0.21520361,110400.0,110390.0,0.1642]
[1761265541015,0.21520361,110400.0,110390.0,0.34537583]
[1761265541194,0.21520355,110400.0,110390.0,0.34537583]
[1761265541428,0.21520355,110400.0,110390.0,0.1642]
[1761265542246,0.21520355,110400.0,110390.0,0.34537583]
[1761265542697,0.21520355,110400.0,110390.0,0.1642]
[1761265551346,0.21520355,110400.0,110390.0,0.34537583]
[1761265553501,0.21520355,110400.0,110390.0,0.1642]
[1761265553921,0.21520355,110400.0,110390.0,0.34537583]
[1761265555082,0.21520355,110400.0,110390.0,0.1642]
[1761265555424,0.21520355,110400.0,110390.0,0.34537583]
[1761265557699,0.00959772,110400.0,110390.0,0.34537583]
[1761265557918,0.19075714,110400.0,110390.0,0.34537583]
[1761265558749,0.00959772,110400.0,110390.0,0.43519484]
[1761265559792,0.19075714,110400.0,110390.0,0.43519484]
[1761265560369,0.1839917,110400.0,110390.0,0.43519484]
[1761265565049,0.18115942,110400.0,110390.0,0.43519484]
[1761265565481,0.18115942,110400.0,110390.0,0.25401901]
[1761265566241,0.18115942,110400.0,110390.0,0.43519484]
[1761265567057,0.18115942,110400.0,110390.0,0.25401901]
[1761265567486,0.18115942,110400.0,110390.0,0.43519484]
[1761265567705,0.16804382,110410.0,110390.0,0.43519484]
[1761265567910,0.18115942,110400.0,110390.0,0.43519484]
[1761265568547,0.18115942,110400.0,110390.0,0.43419484]
[1761265569596,0.16804382,110410.0,110390.0,0.43419484]
[1761265569806,0.18115942,110400.0,110390.0,0.43519484]
[1761265570248,0.16804382,110410.0,110390.0,0.43519484]
[1761265570457,0.16804382,110410.0,110390.0,0.43219484]
[1761265570882,0.16804382,110410.0,110390.0,0.43319484]
[1761265571090,0.16804382,110410.0,110390.0,0.43219484]
[1761265574880,0.50804382,110410.0,110400.0,0.28909437]
[1761265575130,0.50804382,110410.0,110400.0,0.27097843]
[1761265576066,0.50853249,110410.0,110400.0,0.27097843]
[1761265576488,0.50853249,110410.0,110400.0,0.27197843]
[1761265576943,0.51136448,110410.0,110400.0,0.09081901]
[1761265578219,0.51136448,110410.0,110400.0,0.25097901]
[1761265579034,0.51136448,110410.0,110400.0,0.43213843]
[1761265582077,0.51136448,110410.0,110400.0,0.25097901]
[1761265582738,0.51136448,110410.0,110400.0,0.09081901]
[1761265582918,0.51136448,110410.0,110400.0,0.25097901]
[1761265584537,0.51136448,110410.0,110400.0,0.16116]
[1761265585391,0.53857515,110410.0,110400.0,0.16116]
[1761265585597,0.53857515,110410.0,110400.0,0.001]
[1761265585808,0.69873515,110410.0,110400.0,0.001]
[1761265587838,0.78855416,110410.0,110400.0,0.001]
[1761265588210,0.69873515,110410.0,110400.0,0.001]
[1761265598509,0.52117218,110400.0,110380.0,0.35441123]
[1761265598758,0.52400417,110400.0,110380.0,0.44423024]
[1761265599201,0.18117583,110390.0,110380.0,0.43517063]
[1761265599408,0.00283199,110390.0,110380.0,0.43517063]
[1761265599622,0.55121785,110400.0,110380.0,0.43517063]
[1761265599844,0.55121785,110400.0,110380.0,0.43617063]
[1761265600048,0.18117583,110390.0,110380.0,0.43617063]
[1761265600190,0.18400782,110390.0,110380.0,0.43517063]
[1761265600395,0.18400782,110390.0,110380.0,0.43717063]
[1761265601638,0.18400782,110390.0,110380.0,0.43517063]
[1761265602076,0.18400782,110390.0,110380.0,0.43617063]
[1761265602475,0.18400782,110390.0,110380.0,0.43817063]
[1761265602912,0.18400782,110390.0,110380.0,0.43817125]
[1761265604384,0.00283199,110390.0,110380.0,0.43817125]
[1761265604598,0.54838586,110400.0,110390.0,0.18117583]
[1761265604812,0.54838586,110400.0,110360.0,0.004]
[1761265604813,0.18117583,110390.0,110360.0,0.004]
[1761265605038,0.52120866,110370.0,110360.0,0.004]
[1761265605279,0.64636583,110370.0,110360.0,0.004]
[1761265605480,0.64636703,110370.0,110360.0,0.004]
[1761265605694,0.52122508,110360.0,110350.0,0.00074277]
[1761265605915,0.85176584,110360.0,110350.0,0.00074277]
[1761265606379,0.85176584,110360.0,110350.0,0.0008894]
[1761265606617,0.92080535,110360.0,110350.0,0.0008894]
[1761265608002,0.95331104,110360.0,110350.0,0.0008894]
[1761265608205,1.04313005,110360.0,110350.0,0.0008894]
[1761265608682,0.95331104,110360.0,110350.0,0.0008894]
[1761265609355,0.92080535,110360.0,110350.0,0.0008894]
[1761265610920,0.92520535,110360.0,110350.0,0.0008894]
[1761265614674,0.92520535,110360.0,110340.0,0.0044]
[1761265614675,0.5212415,110350.0,110340.0,0.0044]
[1761265614932,0.63342226,110350.0,110340.0,0.00444873]
[1761265615393,0.63787099,110350.0,110340.0,0.00444873]
[1761265616079,0.63787099,110350.0,110340.0,0.00544873]
[1761265616928,0.64700717,110350.0,110340.0,0.00544873]
[1761265618018,0.64700717,110350.0,110330.0,0.0004]
[1761265618019,0.52125793,110340.0,110330.0,0.0004]
[1761265618237,0.8518075,110340.0,110330.0,0.0004]
[1761265618888,0.8562075,110340.0,110330.0,0.0004]
[1761265619394,0.8562075,110340.0,110330.0,0.0014]
[1761265619840,0.8562075,110340.0,110330.0,0.0004]
[1761265620052,0.76638849,110340.0,110330.0,0.0004]
[1761265622254,0.60606849,110340.0,110330.0,0.0004]
[1761265622464,0.76638849,110340.0,110330.0,0.0004]
[1761265622676,0.76638849,110340.0,110330.0,0.00108571]
[1761265623590,0.78259666,110340.0,110330.0,0.00108571]
[1761265623811,0.78259666,110340.0,110320.0,0.0044]
[1761265623812,0.52127435,110330.0,110320.0,0.0044]
[1761265624030,0.63345511,110330.0,110320.0,0.0044]
[1761265624680,0.5436361,110330.0,110320.0,0.0044]
[1761265625136,0.63545511,110330.0,110320.0,0.0044]
[1761265625353,0.72527412,110330.0,110320.0,0.0044]
[1761265625587,0.63345511,110330.0,110320.0,0.0044]
[1761265625805,0.63545511,110330.0,110320.0,0.0044]
[1761265626461,0.2056361,110330.0,110320.0,0.0044]
[1761265626686,0.52610802,110330.0,110320.0,0.18569079]
[1761265626981,0.34483367,110330.0,110320.0,0.0044]
[1761265627208,0.52610802,110330.0,110320.0,0.0044]
[1761265627651,0.52410802,110330.0,110320.0,0.0044]
[1761265627864,0.52410802,110330.0,110320.0,0.18569079]
[1761265628091,0.18127435,110330.0,110320.0,0.18569079]
[1761265628318,0.18127435,110330.0,110320.0,0.0044]
[1761265629403,0.18127435,110330.0,110320.0,0.0047429]
[1761265630499,0.22795799,110330.0,110320.0,0.0047429]
[1761265630977,0.22795799,110330.0,110320.0,0.09456191]
[1761265630978,0.18127435,110330.0,110320.0,0.09456191]
[1761265631435,0.18127435,110330.0,110320.0,0.0047429]
[1761265631672,0.5407397,110330.0,110320.0,0.0047429]
[1761265633209,0.56797389,110330.0,110320.0,0.0047429]
[1761265634098,0.74861191,110330.0,110320.0,0.0047429]
[1761265634313,0.6587929,110330.0,110320.0,0.0047429]
[1761265634578,0.73936828,110330.0,110320.0,0.0047429]
[1761265634804,0.52129079,110320.0,110310.0,0.0004]
[1761265635032,0.73404384,110320.0,110310.0,0.0004]
[1761265635693,0.18130722,110310.0,110300.0,0.15]
[1761265635913,0.66315928,110310.0,110300.0,0.15]
[1761265636151,0.67866127,110310.0,110300.0,0.15]
[1761265636578,0.71122575,110310.0,110300.0,0.15]
[1761265636789,0.62140674,110310.0,110300.0,0.15]
[1761265637002,0.73405705,110310.0,110300.0,0.15]
[1761265637658,0.73405705,110310.0,110300.0,0.151]
[1761265638132,0.74956226,110310.0,110300.0,0.15]
[1761265638639,0.78211389,110310.0,110300.0,0.15]
[1761265638822,0.80935151,110310.0,110300.0,0.15]
[1761265639494,0.5733242,110310.0,110300.0,0.15]
[1761265639773,0.2333242,110310.0,110300.0,0.15]
[1761265640222,0.23615915,110310.0,110300.0,0.15]
[1761265642599,0.24065915,110310.0,110300.0,0.15]
[1761265643422,0.2378242,110310.0,110300.0,0.15]
[1761265645873,0.2378242,110310.0,110300.0,0.15068597]
[1761265646357,0.73699087,110310.0,110300.0,0.15068597]
[1761265646570,0.7157129,110310.0,110300.0,0.15068597]
[1761265647867,0.68316127,110310.0,110300.0,0.15068597]
[1761265648298,0.77376292,110310.0,110300.0,0.15068597]
[1761265648724,0.74120127,110310.0,110300.0,0.15068597]
[1761265650476,0.74120127,110310.0,110300.0,0.08374766]
[1761265650477,0.75850053,110310.0,110300.0,0.08374766]
[1761265650691,0.18132366,110300.0,110290.0,0.004]
[1761265650914,0.37199784,110300.0,110290.0,0.004]
[1761265651128,0.33944191,110300.0,110290.0,0.004]
[1761265651351,0.33944191,110300.0,110290.0,0.00434304]
[1761265651792,0.1813401,110290.0,110280.0,0.0044]
[1761265652005,0.38121114,110290.0,110280.0,0.0045466]
[1761265652439,0.39749835,110290.0,110280.0,0.0045466]
[1761265653501,0.39749835,110290.0,110270.0,0.05]
[1761265653502,0.52135654,110280.0,110270.0,0.05]
[1761265653704,0.52135654,110280.0,110270.0,0.05048894]
[1761265653705,0.66316302,110280.0,110270.0,0.05048894]
[1761265655373,0.6306409,110280.0,110270.0,0.05048894]
[1761265657132,0.70030834,110280.0,110270.0,0.05048894]
[1761265658259,0.52137299,110270.0,110260.0,0.0004]
[1761265658477,0.84969735,110270.0,110260.0,0.00044884]
[1761265658691,0.84969735,110270.0,110260.0,0.00147831]
[1761265658990,0.54083834,110270.0,110260.0,0.00147831]
[1761265659209,0.36195834,110270.0,110260.0,0.00147831]
[1761265659421,0.36195834,110270.0,110260.0,0.00247831]
[1761265660699,0.70195834,110270.0,110260.0,0.00247831]
[1761265660899,0.79177735,110270.0,110260.0,0.00247831]
[1761265661750,0.80084602,110270.0,110260.0,0.00247831]
[1761265665194,0.79177735,110270.0,110260.0,0.00247831]
[1761265668220,0.80114693,110270.0,110260.0,0.00247831]
[1761265674523,0.83366905,110270.0,110260.0,0.00247831]
[1761265675934,0.83366905,110270.0,110230.0,0.13026051]
[1761265676091,0.18140589,110250.0,110230.0,0.22012833]
[1761265676297,0.18140589,110250.0,110230.0,0.22920027]
[1761265677454,0.20095319,110250.0,110230.0,0.22920027]
[1761265677868,0.20095319,110250.0,110230.0,0.23020027]
[1761265678130,0.20095319,110250.0,110230.0,0.22920027]
[1761265678346,0.20095319,110250.0,110230.0,0.23220027]
[1761265679021,0.20095319,110250.0,110230.0,0.23320027]
[1761265680360,0.0195473,110250.0,110240.0,0.28938359]
[1761265680774,0.18138963,110260.0,110240.0,0.27124136]
[1761265680775,0.20093693,110260.0,110240.0,0.27124136]
[1761265680992,0.0195473,110260.0,110250.0,0.19954647]
[1761265681198,0.0195473,110260.0,110250.0,0.28936548]
[1761265681410,0.0195473,110260.0,110250.0,0.2712249]
[1761265681622,0.0195473,110260.0,110250.0,0.4322649]
[1761265682498,0.45377392,110280.0,110260.0,0.18138944]
[1761265682499,0.19042436,110280.0,110260.0,0.18138944]
[1761265682751,0.19042436,110280.0,110260.0,0.28934739]
[1761265682752,0.18137299,110270.0,110260.0,0.28934739]
[1761265682983,0.20095547,110270.0,110260.0,0.27120845]
[1761265683533,0.01958248,110270.0,110260.0,0.27120845]
[1761265683936,0.20095547,110270.0,110260.0,0.27120845]
[1761265684804,0.01958248,110270.0,110260.0,0.27120845]
[1761265685395,0.21000684,110280.0,110260.0,0.27120845]
[1761265686176,0.24252896,110280.0,110260.0,0.27120845]
[1761265686307,0.21000684,110280.0,110260.0,0.27120845]
[1761265687341,0.21000684,110280.0,110260.0,0.27220845]
[1761265687748,0.21000684,110280.0,110260.0,0.27120845]
[1761265688403,0.2099877,110280.0,110260.0,0.27120845]
[1761265688799,0.2099877,110280.0,110270.0,0.18137299]
[1761265688966,0.2099877,110280.0,110260.0,0.27120845]
[1761265690003,0.2099877,110280.0,110260.0,0.27125726]
[1761265695109,0.18137299,110270.0,110260.0,0.27125726]
[1761265695377,0.20093633,110270.0,110260.0,0.27125726]
[1761265696384,0.20093633,110270.0,110260.0,0.08986782]
[1761265696595,0.20093633,110270.0,110260.0,0.09086782]
[1761265697046,0.20093633,110270.0,110260.0,0.09186782]
[1761265697515,0.20093633,110270.0,110260.0,0.27325726]
[1761265697718,0.20093633,110270.0,110260.0,0.16288881]
[1761265697924,0.20093633,110270.0,110260.0,0.00204881]
[1761265701274,0.20093633,110270.0,110260.0,0.20157719]
[1761265701479,0.20093633,110270.0,110260.0,0.18343825]
[1761265701888,0.20093633,110270.0,110260.0,0.27325726]
[1761265703292,0.18137299,110270.0,110260.0,0.27325726]
[1761265704313,0.19042436,110280.0,110260.0,0.27325726]
[1761265704524,0.20998625,110280.0,110260.0,0.27325726]
[1761265704958,0.18137299,110270.0,110260.0,0.27325726]
[1761265705185,0.20093488,110270.0,110260.0,0.27225726]
[1761265705852,0.20093488,110270.0,110260.0,0.27125726]
[1761265706269,0.20093488,110270.0,110260.0,0.27225726]
[1761265706672,0.20093488,110270.0,110260.0,0.27325726]
[1761265707623,0.01956189,110270.0,110260.0,0.27325726]
[1761265708065,0.20998625,110280.0,110260.0,0.27325726]
[1761265708969,0.20998625,110280.0,110260.0,0.27125726]
[1761265709745,0.20998625,110280.0,110270.0,0.16072]
[1761265715154,0.18137299,110270.0,110260.0,0.27125726]
[1761265715360,0.20093488,110270.0,110260.0,4.881e-05]
[1761265715606,0.20093488,110270.0,110260.0,0.16064881]
[1761265715824,0.2179432,110270.0,110260.0,0.16064881]
[1761265716291,0.36157488,110270.0,110260.0,4.881e-05]
[1761265716508,0.36157488,110270.0,110260.0,0.00104881]
[1761265716715,0.37858274,110270.0,110260.0,0.00104881]
[1761265717046,0.37858274,110270.0,110260.0,4.881e-05]
[1761265717267,0.37858274,110270.0,110260.0,0.00104881]
[1761265717741,0.37858274,110270.0,110260.0,4.881e-05]
[1761265718733,0.36157488,110270.0,110260.0,4.881e-05]
[1761265718947,0.37857928,110270.0,110260.0,4.881e-05]
[1761265720096,0.78941925,110270.0,110260.0,4.881e-05]
[1761265720312,0.7511014,110270.0,110260.0,4.881e-05]
[1761265720724,0.84092041,110270.0,110260.0,4.881e-05]
[1761265721989,0.84192041,110270.0,110260.0,4.881e-05]
[1761265722190,0.84092041,110270.0,110260.0,4.881e-05]
[1761265722475,0.84192041,110270.0,110260.0,4.881e-05]
[1761265723614,0.8907543,110270.0,110260.0,4.881e-05]
[1761265724212,0.84192041,110270.0,110260.0,4.881e-05]
[1761265724427,0.85099152,110270.0,110260.0,4.881e-05]
[1761265737232,0.61981877,110270.0,110260.0,4.881e-05]
[1761265737450,0.80119176,110270.0,110260.0,4.881e-05]
[1761265737662,0.71125275,110270.0,110260.0,4.881e-05]
[1761265737875,0.70218164,110270.0,110260.0,4.881e-05]
[1761265738259,0.36218164,110270.0,110260.0,4.881e-05]
[1761265749227,0.36217122,110270.0,110260.0,4.881e-05]
[1761265759232,0.3794649,110270.0,110260.0,4.881e-05]
[1761265759790,0.36247092,110270.0,110260.0,4.881e-05]
[1761265760002,0.37946633,110270.0,110260.0,4.881e-05]
[1761265761445,0.40671308,110270.0,110260.0,4.881e-05]
[1761265765316,0.4392352,110270.0,110260.0,4.881e-05]
[1761265769006,0.7792352,110270.0,110260.0,4.881e-05]
[1761265769240,0.86905421,110270.0,110260.0,4.881e-05]
[1761265769454,0.9178881,110270.0,110260.0,4.881e-05]
[1761265769670,0.88536598,110270.0,110260.0,4.881e-05]
[1761265772283,0.91801224,110270.0,110260.0,4.881e-05]
[1761265772900,0.66767323,110270.0,110260.0,4.881e-05]
[1761265773159,0.77931934,110270.0,110260.0,4.881e-05]
[1761265774215,0.61883934,110270.0,110260.0,4.881e-05]
[1761265774695,0.58619308,110270.0,110260.0,4.881e-05]
[1761265775454,0.24619308,110270.0,110260.0,4.881e-05]
[1761265775732,0.21894633,110270.0,110260.0,4.881e-05]
[1761265778313,0.21894633,110270.0,110260.0,0.01818775]
[1761265778314,0.20195092,110270.0,110260.0,0.01818775]
[1761265778669,0.20195092,110270.0,110260.0,0.19957719]
[1761265779905,0.20095092,110270.0,110260.0,0.19957719]
[1761265780303,0.01609355,110270.0,110260.0,0.19957719]
[1761265780504,0.18137299,110270.0,110260.0,0.19957719]
[1761265782402,0.18137299,110270.0,110260.0,0.01818775]
[1761265782600,0.18137299,110270.0,110260.0,4.881e-05]
[1761265786962,0.19836013,110270.0,110260.0,4.881e-05]
[1761265790300,0.35880013,110270.0,110260.0,4.881e-05]
[1761265792305,0.37837004,110270.0,110260.0,4.881e-05]
[1761265797365,0.17834442,110270.0,110260.0,4.881e-05]
[1761265797571,0.35971741,110270.0,110260.0,4.881e-05]
[1761265797772,0.2009429,110270.0,110260.0,4.881e-05]
[1761265803222,0.20095806,110270.0,110260.0,4.881e-05]
[1761265804808,0.22820377,110270.0,110260.0,4.881e-05]
[1761265809296,0.22820826,110270.0,110260.0,4.881e-05]
[1761265824239,0.22379759,110270.0,110260.0,4.881e-05]
[1761265828599,0.25644385,110270.0,110260.0,4.881e-05]
[1761265829648,0.03264626,110270.0,110260.0,4.881e-05]
[1761265829824,0.18137299,110270.0,110260.0,4.881e-05]
[1761265830084,0.20862053,110270.0,110260.0,4.881e-05]
[1761265831249,0.20962053,110270.0,110260.0,4.881e-05]
[1761265832455,0.37002053,110270.0,110260.0,4.881e-05]
[1761265839733,0.40266679,110270.0,110260.0,4.881e-05]
[1761265848171,0.40033604,110270.0,110260.0,4.881e-05]
[1761265853100,0.36768978,110270.0,110260.0,4.881e-05]
[1761265853711,0.40033604,110270.0,110260.0,4.881e-05]
[1761265864507,0.87898894,110270.0,110260.0,4.881e-05]
[1761265864938,0.79750879,110270.0,110260.0,4.881e-05]
[1761265865154,0.84648303,110270.0,110260.0,4.881e-05]
[1761265869496,0.86605941,110270.0,110260.0,4.881e-05]
[1761265869717,0.86605941,110270.0,110250.0,0.00034323]
[1761265869718,0.18138944,110260.0,110250.0,0.00034323]
[1761265869908,0.58700773,110260.0,110250.0,0.00049003]
[1761265870111,0.55438042,110260.0,110250.0,0.00049003]
[1761265870402,0.61425738,110260.0,110250.0,0.00049003]
[1761265870633,0.52443837,110260.0,110250.0,0.00049003]